bitfinex-derivatives/quotes_ETHF0:USTF0_20250220
["timestamp","ask_amount","ask_price","bid_price","bid_amount"]
[1740074549753,1.30118,2734.7,2734.6,1.26849089]
[1740074549948,0.57,2734.7,2734.6,1.26849089]
[1740074550149,0.54468938,2734.8,2734.4,3.2078]
[1740074550350,0.00548938,2734.8,2734.7,0.73118]
[1740074551258,5.6048,2735.5,2734.7,3.2078]
[1740074551451,0.73109,2735.1,2735.0,0.73107]
[1740074551647,0.73106,2735.2,2735.1,0.73105]
[1740074552154,1.1583,2735.4,2734.9,0.5552]
[1740074552155,0.73109,2735.1,2735.0,0.73108]
[1740074552354,0.73652938,2735.3,2735.2,0.73102]
[1740074552554,0.00548938,2735.3,2735.2,0.73102]
[1740074554749,0.00548938,2735.3,2735.2,3.12802]
[1740074555052,0.5838,2736.2,2735.9,0.73084]
[1740074555053,0.5735,2736.1,2735.9,0.73084]
[1740074555256,0.5735,2736.1,2735.6,5.6048]
[1740074555455,0.5735,2736.1,2736.0,0.73083]
[1740074555651,1.3043,2736.1,2736.0,0.73083]
[1740074555949,1.30432,2736.1,2735.8,0.00548938]
[1740074556153,0.5735,2736.1,2736.0,0.73083]
[1740074556348,1.3043,2736.1,2736.0,0.73083]
[1740074556552,0.5735,2736.1,2735.9,0.5638]
[1740074556753,0.5735,2736.1,2736.0,0.73083]
[1740074557055,1.3043,2736.1,2736.0,0.73083]
[1740074557450,1.3043,2736.1,2735.9,0.5638]
[1740074557756,0.5735,2736.1,2736.0,0.73083]
[1740074557958,1.3043,2736.1,2736.0,0.73083]
[1740074559254,0.5735,2736.1,2736.0,0.73083]
[1740074559654,1.3043,2736.1,2736.0,0.73083]
[1740074560262,1.46728938,2736.3,2735.9,0.5638]
[1740074560447,1.46728938,2736.3,2736.2,0.73077]
[1740074560950,0.73079,2736.2,2736.1,0.73079]
[1740074561861,1.46728938,2736.3,2735.9,3.7716]
[1740074562359,2.19804938,2736.3,2736.2,0.73077]
[1740074562558,1.46728938,2736.3,2736.2,0.73077]
[1740074562755,0.00548938,2736.3,2736.2,0.73077]
[1740074562953,0.00548938,2736.3,2736.2,3.93857]
[1740074563650,1.31183,2736.8,2736.7,0.73064]
[1740074564065,0.5812,2736.8,2736.4,0.575]
[1740074564255,0.73065,2736.7,2736.6,0.73064]
[1740074565562,0.73066,2736.7,2736.6,0.73064]
[1740074565860,0.5812,2736.8,2736.4,2.40178]
[1740074566061,1.31183,2736.8,2736.7,0.73064]
[1740074566865,0.73066,2736.7,2736.6,0.73065]
[1740074567160,1.31183,2736.8,2736.7,0.73064]
[1740074567363,0.73069,2736.6,2736.5,0.73067]
[1740074567865,0.73069,2736.6,2736.5,0.73066]
[1740074568059,0.5812,2736.8,2736.4,2.97]
[1740074568259,0.5812,2736.8,2736.7,0.73064]
[1740074568565,0.73608938,2736.9,2736.8,0.73061]
[1740074568866,0.00548938,2736.9,2736.8,0.73061]
[1740074569563,3.2078,2738.0,2736.8,12.13654204]
[1740074569758,0.5836,2738.3,2737.8,3.2078]
[1740074569957,3.2078,2738.6,2737.8,3.2078]
[1740074570162,3.2078,2739.3,2738.1,3.2078]
[1740074570367,3.2078,2739.3,2738.6,3.2078]
[1740074570765,0.00545562,2739.2,2739.0,0.73003]
[1740074571061,0.00545562,2739.2,2739.1,3.157]
[1740074571271,0.00545562,2739.2,2738.9,3.2078]
[1740074571470,0.00545562,2739.2,2739.1,3.157]
[1740074571671,0.00545562,2739.2,2739.1,2.427]
[1740074571863,0.00545562,2739.2,2738.7,0.00547925]
[1740074572165,0.00545562,2739.2,2738.7,2.43547925]
[1740074572466,0.00545562,2739.2,2738.8,3.93787]
[1740074572656,0.00545562,2739.2,2738.8,3.2078]
[1740074572860,0.00545562,2739.2,2739.1,0.73]
[1740074573163,0.00545562,2739.2,2739.1,6.3698]
[1740074573463,0.00545562,2739.2,2739.1,5.6398]
[1740074573868,0.00545562,2739.2,2739.1,3.2078]
[1740074574167,0.73002,2739.1,2738.8,5.6388]
[1740074574370,0.73003,2739.0,2738.8,3.2078]
[1740074574756,3.21325562,2739.2,2738.7,0.00547925]
[1740074574962,0.73007,2738.9,2738.7,0.00547925]
[1740074575870,0.73008,2738.8,2738.7,0.00547925]
[1740074576170,3.2078,2738.9,2738.7,0.00547925]
[1740074576965,0.4908,2739.0,2738.7,0.00547925]
[1740074577164,0.4908,2739.0,2738.9,0.73005]
[1740074577865,0.4908,2739.0,2738.7,0.00547925]
[1740074578061,0.4908,2739.0,2738.8,0.73006]
[1740074578262,0.4908,2739.0,2738.9,3.93785]
[1740074578463,0.4908,2739.0,2738.9,6.36985]
[1740074578664,0.00545562,2739.2,2739.1,0.73]
[1740074579058,0.00545562,2739.2,2739.1,41.53]
[1740074579465,0.00545562,2739.2,2739.1,40.8]
[1740074579969,0.00545562,2739.2,2739.1,41.53]
[1740074580363,0.00545562,2739.2,2739.1,0.73]
[1740074580771,0.00545562,2739.2,2739.1,41.53]
[1740074580959,0.00545562,2739.2,2739.1,0.73]
[1740074581364,0.00545562,2739.2,2739.1,42.06048935]
[1740074581970,0.00545562,2739.2,2739.1,50.98748935]
[1740074582173,10.0,2740.0,2739.1,48.06048935]
[1740074582372,10.0,2740.0,2739.8,0.7298]
[1740074582669,10.0,2740.0,2739.8,2.432]
[1740074582872,0.72979,2739.9,2739.8,2.432]
[1740074583072,10.0,2740.0,2739.7,3.2078]
[1740074583073,0.72981,2739.8,2739.7,3.2078]
[1740074583273,10.0,2740.0,2739.6,2.431]
[1740074583468,0.72983,2739.8,2739.6,2.431]
[1740074583974,0.72984,2739.7,2739.6,2.431]
[1740074584277,0.72983,2739.8,2739.6,2.431]
[1740074584573,10.0,2740.0,2739.5,0.72988]
[1740074584766,0.72985,2739.7,2739.5,0.72988]
[1740074584966,10.0,2740.0,2739.4,3.2078]
[1740074585166,10.0,2740.0,2739.5,0.53010738]
[1740074585366,10.72978,2740.0,2739.8,0.7298]
[1740074585574,10.0,2740.0,2739.9,0.72979]
[1740074585776,10.72976,2740.0,2739.9,0.72979]
[1740074585977,10.0,2740.0,2739.9,0.72979]
[1740074586369,10.0,2740.0,2739.7,5.6428]
[1740074586677,10.72977,2740.0,2739.8,0.72979]
[1740074586975,0.72979,2739.9,2739.8,0.72979]
[1740074587170,10.0,2740.0,2739.7,5.6428]
[1740074587573,0.72981,2739.8,2739.7,2.435]
[1740074588677,11.9507,2740.0,2739.8,0.72981]
[1740074588872,0.72979,2739.9,2739.8,0.7298]
[1740074589473,11.9507,2740.0,2739.7,2.435]
[1740074589873,0.7298,2739.9,2739.8,0.72981]
[1740074590075,11.9507,2740.0,2739.7,2.435]
[1740074590574,11.9507,2740.0,2739.9,0.72979]
[1740074590776,11.9507,2740.0,2739.8,0.7298]
[1740074590975,11.9507,2740.0,2739.9,0.53063603]
[1740074591275,10.72978,2740.0,2739.9,1.26042603]
[1740074591479,10.72978,2740.0,2739.9,0.53063603]
[1740074591876,10.0,2740.0,2739.9,1.26042603]
[1740074592276,10.0,2740.0,2739.9,7.26042603]
[1740074592992,9.01829,2740.0,2739.9,48.06042603]
[1740074593189,3.2078,2741.0,2739.9,48.06042603]
[1740074593190,3.2078,2741.0,2739.9,47.33100265]
[1740074593497,0.72941,2741.4,2740.8,3.2078]
[1740074593790,3.2078,2741.7,2741.1,1.82368]
[1740074593994,3.2078,2741.7,2741.6,0.72934]
[1740074594296,3.2078,2741.7,2741.6,3.75534265]
[1740074594495,3.2078,2742.1,2741.9,0.72926]
[1740074594690,3.2078,2742.1,2741.4,3.2078]
[1740074594890,0.72936,2741.6,2741.5,0.53019717]
[1740074595092,0.72936,2741.6,2741.5,0.00547925]
[1740074595294,0.72934,2741.6,2741.5,0.53603462]
[1740074595593,4.3386,2742.2,2741.5,0.53603462]
[1740074595894,0.72931,2741.7,2741.6,0.53055537]
[1740074596094,0.72928,2741.8,2741.5,0.00547925]
[1740074596299,3.2078,2741.9,2741.5,0.00547925]
[1740074596300,3.2078,2741.9,2741.6,0.53086023]
[1740074596598,3.2078,2741.9,2741.5,0.00547925]
[1740074596599,0.72931,2741.7,2741.5,0.00547925]
[1740074596898,0.72931,2741.7,2741.6,0.53083248]
[1740074597300,3.2078,2741.9,2741.6,0.53083248]
[1740074597301,3.93707,2741.9,2741.6,0.53083248]
[1740074597600,0.72928,2741.8,2741.7,0.53109066]
[1740074597998,0.72934,2741.6,2741.5,0.00547925]
[1740074598298,3.93714,2741.6,2741.5,0.00547925]
[1740074598497,0.72934,2741.6,2741.5,0.00547925]
[1740074598694,3.2078,2741.9,2741.5,0.00547925]
[1740074599197,0.72934,2741.6,2741.5,0.00547925]
[1740074599499,3.93714,2741.6,2741.5,0.00547925]
[1740074601703,3.93714,2741.6,2741.5,9.25e-06]
[1740074605807,3.94022536,2741.6,2741.5,9.25e-06]
[1740074609403,3.94022536,2741.6,2741.5,0.72936925]
[1740074609404,0.00308536,2741.6,2741.5,0.72936925]
[1740074609604,0.73242536,2741.6,2741.5,9.25e-06]
[1740074609803,0.00308536,2741.6,2741.5,2.54300925]
[1740074610108,0.00308536,2741.6,2741.5,3.27236925]
[1740074610408,0.00308536,2741.6,2741.5,3.7294407]
[1740074610709,0.00308536,2741.6,2741.5,44.5294407]
[1740074610910,0.00308536,2741.6,2741.5,47.7372407]
[1740074611110,0.00308536,2741.6,2741.5,53.7372407]
[1740074611403,0.00547,2741.8,2741.5,53.7372407]
[1740074611404,0.00547,2741.8,2741.7,0.72931]
[1740074611609,3.2078,2742.4,2741.6,1.82335]
[1740074611808,3.2078,2742.4,2741.5,53.0078807]
[1740074611809,0.72923,2742.0,2741.9,0.72923]
[1740074612012,0.72923,2742.0,2741.9,2.99707145]
[1740074612506,0.72923,2742.0,2741.9,2.54]
[1740074613706,0.72934,2741.6,2741.5,9.25e-06]
[1740074614105,1.132,2742.0,2741.5,9.25e-06]
[1740074614306,1.132,2742.0,2741.5,0.45737642]
[1740074614307,0.72934,2741.6,2741.5,0.45737642]
[1740074615215,0.72934,2741.6,2741.5,9.25e-06]
[1740074618617,0.72934,2741.6,2741.5,0.4582561]
[1740074619203,0.72934,2741.6,2741.5,9.25e-06]
[1740074619816,4.3398,2742.0,2741.5,9.25e-06]
[1740074620019,0.72932,2741.7,2741.6,0.72934]
[1740074620317,1.132,2742.0,2741.5,2.53100925]
[1740074620517,0.72932,2741.7,2741.6,1.18783405]
[1740074620814,0.72932,2741.7,2741.6,0.45850405]
[1740074622117,0.72934,2741.6,2741.5,9.25e-06]
[1740074622508,0.72934,2741.6,2741.5,0.45940417]
[1740074623217,0.72934,2741.6,2741.5,9.25e-06]
[1740074624020,0.72934,2741.6,2741.5,0.45949875]
[1740074624712,0.72934,2741.6,2741.5,9.25e-06]
[1740074631419,0.72932,2741.7,2741.5,9.25e-06]
[1740074631621,0.4919,2741.8,2741.5,9.25e-06]
[1740074631622,0.4919,2741.8,2741.7,0.72931]
[1740074632323,0.72926,2741.9,2741.6,1.1146]
[1740074632519,1.82296,2742.2,2741.6,1.1146]
[1740074632720,0.72931,2741.8,2741.7,1.18822529]
[1740074633025,0.72928,2741.9,2741.8,0.72925]
[1740074633626,5.03069,2742.3,2741.7,1.18822529]
[1740074633627,0.72928,2741.8,2741.7,1.18822529]
[1740074633921,0.72928,2741.9,2741.8,0.72926]
[1740074634123,0.72925,2742.0,2741.9,0.72922]
[1740074634529,5.03071,2742.3,2741.6,1.1146]
[1740074634718,0.72928,2741.9,2741.8,0.72925]
[1740074635027,5.03071,2742.3,2741.7,0.45893959]
[1740074635225,0.72926,2742.0,2741.9,0.72923]
[1740074635726,0.72918,2742.2,2742.1,0.72918]
[1740074635927,0.72925,2742.0,2741.9,0.72926]
[1740074636122,0.72923,2742.1,2742.0,0.72919]
[1740074636333,0.72926,2742.0,2741.9,0.72924]
[1740074636827,5.03072,2742.3,2741.8,6.44605]
[1740074636828,0.72926,2741.9,2741.8,6.44605]
[1740074637220,0.72924,2742.0,2741.9,0.72922]
[1740074638229,2.38926,2742.2,2741.8,5.7168]
[1740074638429,0.72926,2741.9,2741.8,6.44607]
[1740074639231,0.7292,2742.1,2742.0,0.7292]
[1740074639530,0.72926,2742.0,2741.9,0.72924]
[1740074640529,2.38928,2742.2,2741.8,5.7168]
[1740074640732,0.72926,2741.9,2741.8,6.44607]
[1740074640927,0.72926,2741.9,2741.8,6.44608]
[1740074641123,0.5663,2742.2,2741.8,5.7168]
[1740074641326,0.72923,2742.1,2742.0,0.72921]
[1740074641529,0.5663,2742.2,2741.8,5.7168]
[1740074641925,0.72925,2742.0,2741.9,0.72923]
[1740074642329,0.5663,2742.2,2741.8,5.7168]
[1740074642529,0.72924,2742.1,2742.0,0.7292]
[1740074644729,0.72924,2742.1,2742.0,0.72921]
[1740074645430,0.72924,2742.1,2741.8,5.7168]
[1740074645431,5.0307,2742.3,2741.8,5.7168]
[1740074645632,0.72929,2741.9,2741.8,3.22527]
[1740074645821,0.72929,2741.9,2741.8,2.496]
[1740074646226,3.2078,2742.3,2741.7,2.496]
[1740074646427,0.72927,2741.9,2741.8,0.72927]
[1740074646622,0.72923,2742.1,2742.0,0.72922]
[1740074646827,0.72921,2742.2,2742.1,0.72918]
[1740074647028,0.72922,2742.1,2742.0,0.7292]
[1740074647229,0.5785,2742.4,2741.8,3.2078]
[1740074647429,0.5785,2742.4,2742.3,0.72915]
[1740074647727,3.2078,2743.5,2742.4,1.82281]
[1740074647929,5.02993,2743.5,2742.8,3.2078]
[1740074648133,0.72892,2743.2,2743.0,0.72894]
[1740074648335,3.2078,2743.5,2742.9,40.8]
[1740074648533,3.2078,2743.5,2743.0,1.10535084]
[1740074648734,0.72887,2743.4,2743.2,0.72889]
[1740074648927,3.2078,2743.5,2743.4,0.72886]
[1740074649236,1.1629,2744.1,2743.4,0.54855084]
[1740074649425,0.72875,2743.8,2743.5,0.54855084]
[1740074649627,0.72877,2743.8,2743.6,0.54855084]
[1740074649828,0.72877,2743.8,2743.7,0.54855084]
[1740074650232,3.93657,2743.8,2743.7,0.54855084]
[1740074650628,3.93655,2743.8,2743.7,0.54762191]
[1740074651431,3.93655,2743.8,2743.7,0.54737676]
[1740074651629,3.93655,2743.8,2743.7,0.54740536]
[1740074651839,3.2078,2743.8,2742.7,3.21326916]
[1740074652039,0.72902,2742.8,2742.7,0.00546916]
[1740074652541,1.2814,2742.9,2742.7,0.00546916]
[1740074652834,0.5524,2742.9,2742.7,0.00546916]
[1740074653039,0.5524,2742.9,2742.8,0.72902]
[1740074653240,0.5524,2742.9,2742.7,0.00546916]
[1740074653734,0.5524,2742.9,2742.7,0.73450916]
[1740074654434,1.28139,2742.9,2742.7,0.00546916]
[1740074654631,0.72902,2742.8,2742.7,0.00546916]
[1740074655134,1.26882,2742.8,2742.7,0.00546916]
[1740074655940,0.5398,2742.8,2742.1,3.2078]
[1740074656237,3.2078,2742.6,2742.1,3.2078]
[1740074656434,3.2078,2742.6,2742.1,3.93699]
[1740074656637,3.2078,2742.6,2742.1,3.2078]
[1740074657036,1.4585,2742.5,2742.1,0.00546916]
[1740074657240,0.72918,2742.2,2742.1,0.00546916]
[1740074658532,3.2078,2742.3,2742.1,0.00546916]
[1740074658742,0.72918,2742.2,2742.1,0.00546916]
[1740074659235,1.4585,2742.5,2742.1,0.00546916]
[1740074659439,1.4585,2742.5,2742.2,2.538]
[1740074659834,1.4585,2742.5,2742.4,0.72912]
[1740074660033,1.4585,2742.5,2742.2,2.538]
[1740074660235,0.72912,2742.5,2742.3,0.72914]
[1740074660435,0.72912,2742.4,2742.1,3.21326916]
[1740074660634,0.00543553,2742.6,2742.1,44.01326916]
[1740074660836,0.72917,2742.3,2742.1,41.53465916]
[1740074661137,0.00543553,2742.6,2742.1,40.80546916]
[1740074661342,0.72913,2742.4,2742.1,44.01326916]
[1740074661543,0.72913,2742.4,2742.3,0.72915]
[1740074661840,3.21323553,2742.6,2742.3,0.72915]
[1740074662040,0.72912,2742.5,2742.3,0.72913]
[1740074662342,0.72912,2742.4,2742.3,0.72915]
[1740074662543,3.21323553,2742.6,2742.3,0.72913]
[1740074662844,0.72912,2742.5,2742.3,0.72913]
[1740074663146,0.00543553,2742.6,2742.5,0.7291]
[1740074663838,0.73450553,2742.6,2742.5,1.2740017]
[1740074664944,0.73450553,2742.6,2742.5,0.5449017]
[1740074665442,0.73450553,2742.6,2742.5,1.2740017]
[1740074666447,0.00543553,2742.6,2742.5,1.2740017]
[1740074666742,0.73450553,2742.6,2742.5,1.27419467]
[1740074667338,0.00543553,2742.6,2742.5,1.27419467]
[1740074667545,0.73450553,2742.6,2742.5,1.27419467]
[1740074668146,0.00543553,2742.6,2742.5,1.27419467]
[1740074669640,0.73450553,2742.6,2742.5,1.27419467]
[1740074670143,0.73450553,2742.6,2742.5,0.54509467]
[1740074670348,3.94230553,2742.6,2742.5,0.54509467]
[1740074670750,3.21323553,2742.6,2742.2,0.72917]
[1740074670949,0.72912,2742.4,2742.3,0.54531731]
[1740074671841,0.72912,2742.4,2742.3,0.54539145]
[1740074672652,0.72912,2742.4,2742.3,1.27454145]
[1740074672944,3.94232553,2742.6,2742.5,0.7291]
[1740074673152,3.21323553,2742.6,2742.5,0.54539145]
[1740074673353,3.94230553,2742.6,2742.5,0.54539145]
[1740074673942,3.21323553,2742.6,2742.5,1.27449145]
[1740074674143,0.00543553,2742.6,2742.5,3.80549145]
[1740074674346,3.64323,2744.3,2742.5,3.80549145]
[1740074674347,1.0807,2743.5,2742.5,9.64379145]
[1740074674649,0.5374,2743.5,2742.9,3.2078]
[1740074674852,0.5374,2743.5,2743.0,44.41749145]
[1740074675154,0.5374,2743.5,2743.1,0.54539145]
[1740074675347,0.72888,2743.3,2743.2,0.54539145]
[1740074676645,8.532,2743.3,2742.4,20.222]
[1740074676953,0.72918,2742.2,2741.6,41.09871317]
[1740074677148,0.72918,2742.2,2741.6,40.8]
[1740074677450,0.72918,2742.2,2741.7,0.5522]
[1740074677652,0.72918,2742.2,2741.7,1.2815]
[1740074678646,0.72918,2742.2,2741.8,0.72928]
[1740074679055,0.72918,2742.2,2741.7,1.28149]
[1740074679555,0.72918,2742.2,2741.8,0.72926]
[1740074680251,0.72918,2742.2,2741.9,0.72924]
[1740074680455,0.72918,2742.2,2741.7,0.5522]
[1740074680648,0.72918,2742.2,2741.8,0.72927]
[1740074680951,0.72918,2742.2,2741.7,0.5522]
[1740074681256,0.72918,2742.2,2741.8,0.72927]
[1740074681451,0.72918,2742.2,2741.7,0.5522]
[1740074681649,3.93698,2742.2,2741.7,0.5522]
[1740074681949,0.72931,2741.7,2741.6,40.8]
[1740074682255,3.2078,2742.2,2741.6,40.8]
[1740074682554,0.72931,2741.7,2741.6,40.8]
[1740074683056,0.72943,2741.3,2741.1,0.72946]
[1740074683352,0.72942,2741.3,2741.1,0.72946]
[1740074683551,0.72942,2741.3,2741.2,40.8]
[1740074683751,1.1161,2741.6,2741.2,40.8]
[1740074683949,0.7294,2741.4,2741.2,0.72943]
[1740074684353,1.1161,2741.6,2740.9,3.09056916]
[1740074684557,0.72942,2741.3,2741.1,0.72945]
[1740074685152,0.72942,2741.4,2741.3,0.72941]
[1740074685345,0.72942,2741.3,2741.0,40.8]
[1740074685550,0.72942,2741.3,2741.2,0.72944]
[1740074685748,1.4591,2741.4,2741.0,40.8]
[1740074685957,0.72947,2741.1,2741.0,40.8]
[1740074686253,1.4591,2741.4,2740.9,0.00546916]
[1740074686454,1.4591,2741.4,2741.2,0.72943]
[1740074686655,1.4591,2741.4,2741.0,0.5569]
[1740074686851,0.72945,2741.2,2741.1,0.72947]
[1740074687050,1.4591,2741.4,2741.3,0.72942]
[1740074687255,0.72945,2741.2,2741.1,0.72945]
[1740074687552,3.28261,2741.4,2740.9,40.80546916]
[1740074687752,0.7295,2741.0,2740.9,0.00546916]
[1740074688658,0.7295,2741.0,2740.9,0.54652038]
[1740074689749,0.72969,2740.3,2740.2,3.9375]
[1740074689952,3.2078,2740.8,2740.0,20.224]
[1740074690149,3.2078,2740.8,2739.9,0.55]
[1740074690350,1.82401,2740.6,2740.0,0.72974]
[1740074690849,3.2078,2740.8,2739.9,0.55]
[1740074690850,0.5836,2740.5,2739.9,0.55]
[1740074691057,0.72967,2740.4,2740.2,0.7297]
[1740074691554,0.5836,2740.5,2740.0,3.21326916]
[1740074691755,0.5836,2740.5,2740.4,0.72965]
[1740074691951,0.00546916,2740.6,2740.5,0.72963]
[1740074692861,0.00546916,2740.6,2740.5,41.52963]
[1740074693060,0.73506916,2740.6,2740.5,41.52963]
[1740074693353,0.73506916,2740.6,2740.5,40.8]
[1740074694067,0.72963,2740.5,2740.4,0.55]
[1740074694655,0.72963,2740.5,2740.4,42.07965]
[1740074694853,0.72963,2740.5,2740.4,41.35]
[1740074695464,4.6669,2741.4,2740.4,49.869]
[1740074695657,4.6669,2741.4,2741.1,0.72945]
[1740074695959,0.72955,2740.9,2740.8,0.72954]
[1740074696154,4.6669,2741.4,2740.5,2.95224]
[1740074696353,0.72953,2740.9,2740.8,0.72953]
[1740074696554,4.6669,2741.4,2740.5,2.95224]
[1740074696857,0.00546916,2741.1,2741.0,0.7295]
[1740074700367,0.73493916,2741.1,2741.0,0.7295]
[1740074700566,0.73493916,2741.1,2740.9,0.546]
[1740074700567,0.7295,2741.0,2740.9,0.546]
[1740074700865,0.72955,2740.8,2740.7,3.2078]
[1740074701067,0.5575,2741.0,2740.7,3.2078]
[1740074701260,0.00546916,2741.1,2741.0,0.7295]
[1740074701459,0.72951,2741.0,2740.9,0.72951]
[1740074701659,0.73494916,2741.1,2741.0,0.7295]
[1740074701860,0.73494916,2741.1,2741.0,1.26468968]
[1740074702169,0.73494916,2741.1,2741.0,0.53518968]
[1740074702364,0.73494916,2741.1,2741.0,1.26468968]
[1740074702561,0.00546916,2741.1,2741.0,1.26468968]
[1740074702762,0.73493916,2741.1,2741.0,1.26468968]
[1740074702963,0.73493916,2741.1,2741.0,0.5352951]
[1740074703265,0.00546916,2741.1,2741.0,1.26487284]
[1740074703463,0.00546916,2741.1,2741.0,1.81077284]
[1740074704368,0.73493916,2741.1,2741.0,1.81077284]
[1740074704569,0.00546916,2741.1,2741.0,1.81110932]
[1740074704865,0.73493916,2741.1,2741.0,1.08160932]
[1740074705170,0.73493916,2741.1,2741.0,0.53570932]
[1740074706771,0.73493916,2741.1,2741.0,0.5371447]
[1740074706972,1.86813916,2741.1,2741.0,0.5371447]
[1740074707566,0.72973,2740.1,2739.5,5.7438]
[1740074707873,0.72972,2740.2,2739.7,1.1454]
[1740074708069,3.2078,2740.5,2740.1,0.72973]
[1740074708264,2.536,2740.7,2739.8,3.2078]
[1740074708472,2.536,2740.7,2740.2,0.7297]
[1740074709080,2.536,2740.7,2740.2,0.72969]
[1740074709274,0.72967,2740.4,2740.2,0.72971]
[1740074709574,2.536,2740.7,2739.8,3.2078]
[1740074709771,3.2078,2740.8,2740.2,3.2078]
[1740074709972,0.72952,2741.0,2740.3,2.37491]
[1740074710166,4.34646916,2741.1,2740.3,3.2078]
[1740074710473,0.72963,2740.5,2740.4,0.5507]
[1740074710776,3.1969,2740.8,2740.1,0.5947]
[1740074711075,3.1969,2740.8,2740.1,1.1897]
[1740074711566,0.72958,2740.7,2740.1,1.1897]
[1740074711766,0.72958,2740.7,2740.0,3.21326916]
[1740074711968,3.2078,2740.5,2740.0,3.21326916]
[1740074712170,0.7297,2740.3,2740.0,3.94300916]
[1740074712467,0.5931,2740.4,2740.0,3.21326916]
[1740074712674,3.2078,2740.5,2740.0,3.21326916]
[1740074712875,0.7297,2740.3,2740.1,0.72972]
[1740074713170,3.2078,2740.5,2740.0,3.21326916]
[1740074713374,0.72972,2740.2,2740.0,3.21326916]
[1740074713566,0.72973,2740.1,2740.0,3.21326916]
[1740074713769,3.7886,2740.5,2740.0,3.21326916]
[1740074714074,0.72973,2740.1,2740.0,0.00546916]
[1740074714570,8.545,2740.1,2739.1,4.3299]
[1740074714772,3.2078,2739.7,2739.1,1.1221]
[1740074715076,0.72989,2739.6,2739.3,0.72993]
[1740074715280,3.2078,2740.0,2739.4,3.2078]
[1740074715775,0.00546916,2740.0,2739.5,0.5556]
[1740074715975,3.21326916,2740.0,2739.4,3.21326916]
[1740074716175,0.72989,2739.6,2739.4,3.21326916]
[1740074716375,0.72989,2739.6,2739.4,0.00546916]
[1740074716677,0.5708,2739.9,2739.4,0.00546916]
[1740074716872,0.72988,2739.6,2739.4,0.00546916]
[1740074717081,0.72988,2739.6,2739.4,0.73538916]
[1740074717378,0.72988,2739.6,2739.4,0.00546916]
[1740074717580,0.5708,2739.9,2739.4,0.00546916]
[1740074717875,0.5708,2739.9,2739.4,0.73537916]
[1740074717876,0.72988,2739.6,2739.4,0.73537916]
[1740074718575,0.5708,2739.9,2739.4,0.00546916]
[1740074718778,3.21326916,2740.0,2739.4,0.00546916]
[1740074718975,0.72984,2739.8,2739.6,0.72986]
[1740074719176,0.72984,2739.8,2739.7,0.5478]
[1740074719680,3.21326916,2740.0,2739.4,0.00546916]
[1740074719681,2.553,2739.9,2739.4,0.00546916]
[1740074719876,0.72989,2739.5,2739.4,0.00546916]
[1740074720082,3.28689,2739.5,2739.4,0.00546916]
[1740074720873,2.557,2739.5,2738.8,0.5844]
[1740074721175,3.2078,2739.2,2738.8,0.5844]
[1740074721371,7.58955,2739.5,2738.9,0.73005]
[1740074721572,3.2078,2739.5,2738.8,0.5844]
[1740074721773,2.41256,2739.7,2739.5,0.72989]
[1740074722079,0.72987,2739.6,2739.3,0.00546916]
[1740074722271,1.1235,2739.7,2739.3,1.83030916]
[1740074722477,3.2078,2739.8,2739.7,0.72984]
[1740074723080,3.2078,2739.8,2739.7,41.52984]
[1740074723276,3.2078,2739.8,2739.7,40.8]
[1740074723582,0.00546916,2740.0,2739.7,40.8]
[1740074723982,0.72984,2739.8,2739.6,0.72987]
[1740074724182,0.72983,2739.8,2739.6,0.72987]
[1740074724377,0.5448,2739.9,2739.4,41.3397]
[1740074724971,0.00546916,2740.0,2739.4,43.9077]
[1740074725185,0.00546916,2740.0,2739.9,0.72979]
[1740074725382,0.00546916,2740.0,2739.6,3.2078]
[1740074725586,0.7298,2739.9,2739.7,0.5459]
[1740074725786,0.7298,2739.9,2739.8,0.72981]
[1740074725981,0.00546916,2740.0,2739.7,0.5459]
[1740074726286,0.72981,2739.8,2739.7,0.5459]
[1740074726686,0.00546916,2740.0,2739.7,1.27574]
[1740074726887,0.72981,2739.8,2739.7,1.27574]
[1740074727188,0.7298,2739.9,2739.8,0.72981]
[1740074727387,0.72981,2739.9,2739.7,0.5459]
[1740074727582,0.72981,2739.9,2739.7,1.27572]
[1740074728281,0.72979,2739.9,2739.7,1.27572]
[1740074728482,0.72979,2739.9,2739.8,0.72981]
[1740074728686,0.72979,2739.9,2739.7,1.27572]
[1740074728880,0.00546916,2740.0,2739.7,1.27572]
[1740074729089,0.72979,2739.9,2739.7,1.27572]
[1740074729287,0.00546916,2740.0,2739.7,0.5459]
[1740074729588,0.72981,2739.8,2739.7,0.5459]
[1740074730285,0.00546916,2740.0,2739.7,0.5459]
[1740074730485,0.72981,2739.8,2739.7,0.5459]
[1740074731595,0.00546916,2740.0,2739.7,0.5459]
[1740074731791,0.00546916,2740.0,2739.7,1.27572]
[1740074731792,0.72981,2739.8,2739.7,1.27572]
[1740074732188,0.00546916,2740.0,2739.7,0.5459]
[1740074732393,0.00546916,2740.0,2739.9,0.72979]
[1740074733396,0.00546916,2740.0,2739.4,40.8]
[1740074733593,0.7298,2739.9,2739.8,0.72981]
[1740074733791,0.00546916,2740.0,2739.9,0.72979]
[1740074734496,0.7298,2739.9,2739.8,0.7298]
[1740074734888,0.00546916,2740.0,2739.7,40.8]
[1740074735082,0.7298,2739.9,2739.8,0.72979]
[1740074736493,0.72981,2739.9,2739.8,0.72979]
[1740074737098,0.73523916,2740.0,2739.9,0.72979]
[1740074737294,0.72981,2739.9,2739.8,0.72979]
[1740074737590,2.56746916,2740.0,2739.5,3.2078]
[1740074737793,0.72986,2739.7,2739.6,0.72984]
[1740074738195,1.4599,2739.9,2739.5,3.2078]
[1740074738701,0.72983,2739.8,2739.7,0.72981]
[1740074740799,2.18971,2739.9,2739.8,0.72981]
[1740074741095,2.18971,2739.9,2739.5,1.82473]
[1740074741096,0.72986,2739.7,2739.6,0.72984]